bitfinex-derivatives/quotes_BNBF0:USTF0_20250302
["timestamp","ask_amount","ask_price","bid_price","bid_amount"]
[1740913227170,1.13395411,609.01,608.54,2.07165547]
[1740913227567,1.13395411,609.0,608.54,2.07165547]
[1740913227968,1.13395411,608.99,608.54,2.07165547]
[1740913228470,1.13395411,608.98,608.54,2.07165547]
[1740913229369,1.13395411,608.97,608.54,2.07165547]
[1740913229767,1.13395411,608.96,608.54,1.743]
[1740913230373,1.13395411,608.95,608.54,1.743]
[1740913230774,3.03852318,609.16,608.54,1.743]
[1740913230972,3.03852318,609.15,608.54,1.743]
[1740913231168,3.03852318,609.14,608.54,1.743]
[1740913231469,3.03852318,609.13,608.54,1.743]
[1740913231769,2.56717097,609.12,608.54,1.743]
[1740913232074,1.43353966,609.11,608.54,1.743]
[1740913232273,1.43353966,609.1,608.54,1.743]
[1740913232573,1.13363131,609.09,608.54,1.743]
[1740913233175,1.13363131,609.08,608.54,1.743]
[1740913233574,1.13363131,609.07,608.54,1.743]
[1740913234170,1.13363131,609.06,608.54,1.743]
[1740913234979,1.13363131,609.05,608.54,1.743]
[1740913235673,1.13363131,609.04,608.54,1.743]
[1740913236276,1.13363131,609.03,608.54,1.743]
[1740913236678,1.13363131,609.02,608.54,1.743]
[1740913237677,1.13363131,609.01,608.54,1.743]
[1740913238385,1.13363131,609.0,608.54,1.743]
[1740913238584,1.13363131,608.99,608.54,1.743]
[1740913239186,1.13363131,608.98,608.54,1.743]
[1740913240083,1.13363131,608.97,608.54,1.743]
[1740913241185,1.13363131,608.96,608.54,1.743]
[1740913241986,1.13363131,608.95,608.54,1.743]
[1740913242388,1.13363131,608.94,608.54,1.743]
[1740913243485,1.13363131,608.93,608.54,1.743]
[1740913243881,1.4327248,609.09,608.54,1.743]
[1740913244088,1.4327248,609.08,608.54,1.743]
[1740913244290,1.4327248,609.07,608.54,1.743]
[1740913244488,1.4327248,609.06,608.54,3.011]
[1740913244689,1.4327248,609.05,608.54,3.011]
[1740913244889,1.4327248,609.04,608.54,3.011]
[1740913245190,2.56602484,609.03,608.54,3.011]
[1740913245388,1.13330004,609.03,608.54,3.011]
[1740913245783,1.13330004,609.02,608.54,3.011]
[1740913246383,1.13330004,609.01,608.54,3.011]
[1740913246788,1.13330004,609.0,608.54,3.011]
[1740913247391,1.13330004,608.99,608.54,3.011]
[1740913247890,1.13330004,608.98,608.54,3.011]
[1740913248393,1.43273908,608.97,608.54,3.011]
[1740913248586,1.43273908,608.96,608.54,3.011]
[1740913248789,1.13330004,608.96,608.54,3.011]
[1740913249185,3.42925906,609.82,608.54,3.011]
[1740913249186,1.13330004,608.95,608.54,3.011]
[1740913249386,1.13330004,608.94,608.54,3.011]
[1740913249690,1.13330004,608.93,608.54,3.011]
[1740913249891,1.13330004,608.93,608.54,1.268]
[1740913250486,1.13330004,608.92,608.54,1.268]
[1740913251193,1.13330004,608.92,608.54,2.858]
[1740913252789,1.13330004,608.91,608.54,2.858]
[1740913253095,1.13330004,608.91,608.54,4.148]
[1740913253889,1.13330004,608.9,608.54,4.148]
[1740913254596,1.13330004,608.89,608.54,4.148]
[1740913255295,1.13330004,608.88,608.54,4.148]
[1740913255996,1.46427095,609.83,608.54,4.148]
[1740913255997,1.13330004,608.87,608.54,4.726]
[1740913256900,1.13330004,608.86,608.54,4.726]
[1740913257593,1.13330004,608.85,608.54,3.458]
[1740913258303,1.13330004,608.84,608.54,3.458]
[1740913259102,1.13330004,608.83,608.54,3.458]
[1740913259399,3.03578123,609.04,608.54,3.458]
[1740913259600,3.03578123,609.03,608.54,3.458]
[1740913259800,4.16798278,609.02,608.54,3.458]
[1740913259994,3.03578123,609.01,608.54,3.458]
[1740913260199,1.43259301,609.0,608.54,3.458]
[1740913260395,1.43259301,608.99,608.54,3.458]
[1740913260598,1.43259301,608.99,608.54,4.924]
[1740913260793,1.13220155,608.98,608.54,4.924]
[1740913261496,1.13220155,608.97,608.54,4.924]
[1740913261899,1.13220155,608.96,608.54,4.924]
[1740913262698,1.13220155,608.95,608.54,4.924]
[1740913263201,1.13220155,608.94,608.54,4.924]
[1740913263997,1.13220155,608.93,608.54,4.924]
[1740913264398,1.13220155,608.92,608.54,4.924]
[1740913264795,1.13220155,608.91,608.54,4.924]
[1740913265594,1.13220155,608.9,608.54,4.924]
[1740913266200,1.13220155,608.89,608.54,4.924]
[1740913266600,1.13220155,608.88,608.54,4.924]
[1740913267002,1.13220155,608.87,608.54,4.924]
[1740913267295,4.16661131,609.18,608.54,4.924]
[1740913267499,3.03440976,609.17,608.54,4.924]
[1740913267696,1.13220155,609.18,608.54,4.924]
[1740913267896,2.56263818,609.17,608.54,4.924]
[1740913268098,3.03228391,609.16,608.54,4.924]
[1740913268301,2.56263818,609.15,608.54,4.924]
[1740913268501,3.03228391,609.14,608.54,4.924]
[1740913268701,1.43043663,609.13,608.54,4.924]
[1740913268904,1.43043663,609.12,608.54,4.924]
[1740913269104,1.43043663,609.11,608.54,4.924]
[1740913269506,1.13220155,609.1,608.54,4.924]
[1740913270103,1.13220155,609.09,608.54,4.924]
[1740913270705,1.13220155,609.08,608.54,4.924]
[1740913271105,1.13220155,609.07,608.54,4.924]
[1740913271807,1.13220155,609.06,608.54,4.924]
[1740913272204,1.13220155,609.05,608.54,4.924]
[1740913273009,1.13220155,609.04,608.54,4.924]
[1740913273602,1.13220155,609.03,608.54,4.924]
[1740913274008,1.13220155,609.02,608.54,4.924]
[1740913274407,1.13220155,609.01,608.54,4.924]
[1740913275003,1.13220155,609.0,608.54,4.924]
[1740913275410,1.13220155,608.99,608.54,4.924]
[1740913276311,1.13220155,608.98,608.54,4.924]
[1740913276809,1.13220155,608.97,608.54,4.924]
[1740913277711,1.13220155,608.96,608.54,4.924]
[1740913278313,1.13220155,608.95,608.54,4.924]
[1740913279112,1.43043663,608.94,608.54,4.924]
[1740913279313,1.43043663,608.93,608.54,4.924]
[1740913279614,1.43043663,608.92,608.54,4.924]
[1740913279810,1.43043663,608.91,608.54,4.924]
[1740913280007,1.43043663,608.9,608.54,4.924]
[1740913280210,1.43043663,608.89,608.54,4.924]
[1740913280405,1.43442719,608.88,608.54,4.924]
[1740913280611,1.13220155,608.89,608.54,4.924]
[1740913280812,1.43443261,608.88,608.54,4.924]
[1740913281013,1.13220155,608.89,608.54,4.924]
[1740913281207,1.13220155,608.87,608.54,4.924]
[1740913281414,1.13220155,608.87,607.98,1.23095386]
[1740913281616,2.56695239,608.86,608.0,0.32894736]
[1740913281816,1.13220155,608.85,608.0,0.32894736]
[1740913282018,1.43479573,608.84,608.0,0.32894736]
[1740913282319,2.56699728,608.83,608.0,0.32894736]
[1740913282519,1.43479573,608.82,608.0,0.32894736]
[1740913282717,1.43479573,608.81,608.0,0.32894736]
[1740913283017,2.56730447,608.8,608.0,0.32894736]
[1740913283213,1.13220155,608.8,608.0,0.32894736]
[1740913283420,1.13220155,608.79,608.0,0.32894736]
[1740913284018,1.13220155,608.78,608.0,0.32894736]
[1740913284415,1.13220155,608.77,608.0,0.32894736]
[1740913284619,1.13220155,608.77,608.01,5.382]
[1740913284920,1.13220155,608.77,608.02,0.32893654]
[1740913285120,1.13220155,608.76,608.02,0.32893654]
[1740913285621,1.13220155,608.75,608.02,0.32893654]
[1740913285823,1.13220155,608.74,608.02,0.32893654]
[1740913286919,1.13220155,608.73,608.02,0.32893654]
[1740913287320,1.13220155,608.72,608.02,0.32893654]
[1740913287521,1.13220155,608.71,608.02,0.32893654]
[1740913288324,3.04088647,608.93,608.02,0.32893654]
[1740913288523,3.04088647,608.92,608.02,0.32893654]
[1740913288819,4.17556803,608.91,608.02,0.32893654]
[1740913289022,3.04088647,608.9,608.02,0.32893654]
[1740913289224,1.43453554,608.89,608.02,0.32893654]
[1740913289417,1.43453554,608.88,608.02,0.32893654]
[1740913289619,1.43453554,608.87,608.02,0.32893654]
[1740913289821,1.43453554,608.86,608.02,0.32893654]
[1740913290022,1.43453554,608.85,608.02,0.32893654]
[1740913290219,1.43453554,608.84,608.02,0.32893654]
[1740913290422,1.13468156,608.85,608.02,0.32893654]
[1740913290622,1.43425924,608.84,608.02,0.32893654]
[1740913290822,1.43425924,608.83,608.02,0.32893654]
[1740913291017,1.43425756,608.84,608.02,0.32893654]
[1740913291221,1.13468156,608.82,608.02,0.32893654]
[1740913291722,1.13468156,608.81,608.02,0.32893654]
[1740913292623,1.13468156,608.8,608.02,0.32893654]
[1740913293120,3.0400694,608.93,608.02,0.32893654]
[1740913293121,1.13468156,608.79,608.02,0.32893654]
[1740913293923,1.13468156,608.78,608.02,0.32893654]
[1740913294326,1.43419622,608.87,608.02,0.32893654]
[1740913294518,3.03998201,609.02,608.02,0.32893654]
[1740913294722,3.03998201,609.01,608.02,0.32893654]
[1740913294923,3.03996882,609.0,608.02,0.32893654]
[1740913295118,3.03996882,608.99,608.02,0.32893654]
[1740913295321,3.03996882,608.98,608.02,0.32893654]
[1740913295518,1.43419622,608.97,608.02,0.32893654]
[1740913295824,1.43419622,608.96,608.02,0.32893654]
[1740913296021,1.43419622,608.95,608.02,0.32893654]
[1740913296225,1.43419622,608.94,608.02,0.32893654]
[1740913296425,1.43419622,608.93,608.02,0.32893654]
[1740913296724,1.43419622,608.92,608.02,0.32893654]
[1740913296922,1.43419622,608.91,608.02,0.32893654]
[1740913297125,1.43419622,608.9,608.02,0.32893654]
[1740913297326,1.43419622,608.89,608.02,0.32893654]
[1740913297626,1.43419622,608.88,608.02,0.32893654]
[1740913297924,4.17432884,608.87,608.02,0.32893654]
[1740913298124,3.04000302,608.86,608.02,0.32893654]
[1740913298321,3.04000302,608.85,608.02,0.32893654]
[1740913298518,3.04000302,608.84,608.02,0.32893654]
[1740913298722,1.43419622,608.83,608.02,0.32893654]
[1740913298920,1.43419622,608.83,608.02,1.94093654]
[1740913299124,2.56852204,608.82,608.02,1.94093654]
[1740913299321,1.13432582,608.82,608.02,1.94093654]
[1740913299724,3.03963821,608.96,608.02,1.94093654]
[1740913299725,1.13432582,608.81,608.02,1.94093654]
[1740913300326,1.13432582,608.8,608.02,1.94093654]
[1740913301625,1.13432582,608.79,608.02,1.94093654]
[1740913302329,1.13432582,608.78,608.02,1.94093654]
[1740913303131,1.13432582,608.77,608.02,1.94093654]
[1740913303730,1.13432582,608.76,608.02,1.94093654]
[1740913304124,1.13432582,608.75,608.02,1.94093654]
[1740913304326,1.13432582,608.74,608.02,1.94093654]
[1740913305033,1.13432582,608.73,608.02,1.94093654]
[1740913306132,1.13432582,608.72,608.02,1.94093654]
[1740913306928,1.13432582,608.71,608.02,1.94093654]
[1740913307229,1.13432582,608.7,608.02,1.94093654]
[1740913307534,1.13432582,608.69,608.02,1.94093654]
[1740913308136,1.13432582,608.68,608.02,1.94093654]
[1740913308831,2.41325721,609.08,608.02,1.94093654]
[1740913309038,3.03603233,609.07,608.02,1.94093654]
[1740913309237,3.03603233,609.06,608.02,1.94093654]
[1740913309535,3.03603233,609.05,608.02,1.94093654]
[1740913309730,3.03603233,609.04,608.02,1.94093654]
[1740913309931,3.03603233,609.03,608.02,1.94093654]
[1740913310130,3.03603233,609.02,608.02,1.94093654]
[1740913310334,3.03603233,609.01,608.02,1.94093654]
[1740913310533,3.03603233,609.0,608.02,1.94093654]
[1740913310733,3.03603233,608.99,608.02,1.94093654]
[1740913310930,3.03603233,608.98,608.02,1.94093654]
[1740913311133,3.03603233,608.97,608.02,1.94093654]
[1740913311333,4.16889132,608.96,608.02,1.94093654]
[1740913311534,1.13285899,608.96,608.02,1.94093654]
[1740913311736,1.43226759,608.95,608.02,1.94093654]
[1740913311931,1.43226759,608.94,608.02,3.53093654]
[1740913312131,3.03605966,608.93,608.02,3.53093654]
[1740913312334,3.03605966,608.92,608.02,3.53093654]
[1740913312631,4.16891865,608.91,608.02,3.53093654]
[1740913312843,3.03605966,608.9,608.02,4.10993654]
[1740913313043,1.43226759,608.9,608.02,4.10993654]
[1740913313236,1.60387035,608.89,608.02,4.10993654]
[1740913313544,3.03613794,608.88,608.02,4.10993654]
[1740913313744,3.03614345,608.87,608.02,4.10993654]
[1740913314243,1.43226759,608.86,608.02,4.10993654]
[1740913314444,1.43235712,608.85,608.02,4.10993654]
[1740913314646,0.98092579,608.95,608.02,4.10993654]
[1740913314846,3.03619918,608.94,608.02,4.10993654]
[1740913315040,1.43235712,608.94,608.02,4.10993654]
[1740913315444,0.98092579,608.95,608.02,4.10993654]
[1740913315638,0.98088879,608.95,608.02,4.10993654]
[1740913315845,1.13306887,608.89,608.02,4.10993654]
[1740913316044,4.16915607,608.88,608.02,4.10993654]
[1740913316244,3.0360872,608.87,608.02,4.10993654]
[1740913316445,3.0358914,608.86,608.02,4.10993654]
[1740913316645,3.0358914,608.85,608.02,4.10993654]
[1740913316845,3.0358914,608.84,608.02,5.70193654]
[1740913317046,3.0358914,608.83,608.02,5.70193654]
[1740913317246,3.0358914,608.82,608.02,5.70193654]
[1740913317541,1.43230383,608.81,608.02,5.70193654]
[1740913317740,1.13306887,608.81,608.02,5.70193654]
[1740913318040,2.5653727,608.81,608.02,5.70193654]
[1740913318245,1.13306887,608.81,608.02,5.70193654]
[1740913318447,1.13306887,608.8,608.02,5.70193654]
[1740913319147,1.13306887,608.79,608.02,5.70193654]
[1740913319349,1.13306887,608.78,608.02,5.70193654]
[1740913319943,1.13306887,608.77,608.02,5.70193654]
[1740913320647,1.13306887,608.76,608.02,5.70193654]
[1740913321050,1.13306887,608.75,608.02,5.70193654]
[1740913321647,3.03495934,608.97,608.02,5.70193654]
[1740913321949,3.03495934,608.96,608.02,5.70193654]
[1740913322247,4.16752564,608.95,608.02,5.70193654]
[1740913322447,3.03495934,608.94,608.02,5.70193654]
[1740913322648,1.4317313,608.93,608.02,5.70193654]
[1740913322845,1.4317313,608.92,608.02,5.70193654]
[1740913323049,1.4317313,608.91,608.02,5.70193654]
[1740913323350,1.4317313,608.9,608.02,5.70193654]
[1740913323545,1.4317313,608.89,608.02,5.70193654]
[1740913323749,1.4317313,608.9,608.02,5.70193654]
[1740913323950,2.5642976,608.89,608.02,5.70193654]
[1740913324246,1.1325663,608.89,608.02,5.70193654]
[1740913324748,1.4317313,608.88,608.02,5.70193654]
[1740913324952,1.4317313,608.87,608.02,5.70193654]
[1740913325252,2.5642976,608.87,608.02,5.70193654]
[1740913325551,1.1325663,608.87,608.02,5.70193654]
[1740913325945,1.1325663,608.86,608.02,5.70193654]
[1740913326547,1.1325663,608.85,608.02,5.70193654]
[1740913327451,1.1325663,608.84,608.02,5.70193654]
[1740913328048,1.1325663,608.83,608.02,5.70193654]
[1740913328654,1.1325663,608.82,608.02,5.70193654]
[1740913329149,1.1325663,608.81,608.02,5.70193654]
[1740913329750,1.1325663,608.8,608.02,5.70193654]
[1740913330153,1.1325663,608.79,608.02,5.70193654]
[1740913330751,1.1325663,608.78,608.02,5.70193654]
[1740913331956,1.1325663,608.77,608.02,5.70193654]
[1740913332756,1.1325663,608.76,608.02,5.70193654]
[1740913333356,1.1325663,608.75,608.02,5.70193654]
[1740913334259,1.71582122,608.87,608.02,5.70193654]
[1740913334260,1.1325663,608.74,608.02,5.70193654]
[1740913334761,1.1325663,608.73,608.02,5.70193654]
[1740913335354,1.71582122,608.87,608.02,5.70193654]
[1740913335355,1.1325663,608.72,608.02,5.70193654]
[1740913335558,1.1325663,608.71,608.02,5.70193654]
[1740913336155,1.1325663,608.7,608.02,5.70193654]
[1740913336759,1.1325663,608.69,608.02,5.70193654]
[1740913337562,1.1325663,608.68,608.02,5.70193654]
[1740913338257,1.43466411,608.79,608.02,5.70193654]
[1740913338460,1.43466411,608.78,608.02,5.70193654]
[1740913338661,1.60733951,608.85,608.02,5.70193654]
[1740913338859,3.04277068,608.84,608.02,5.70193654]
[1740913339058,1.13546986,608.77,608.02,5.70193654]
[1740913339864,1.13546986,608.76,608.02,5.70193654]
[1740913340263,1.13546986,608.75,608.02,5.70193654]
[1740913341363,1.13546986,608.74,608.02,5.70193654]
[1740913341563,1.13546986,608.73,608.02,5.70193654]
[1740913341965,1.13546986,608.72,608.02,5.70193654]
[1740913342559,1.13546986,608.71,608.02,5.70193654]
[1740913343158,1.13546986,608.7,608.02,5.70193654]
[1740913343757,1.13546986,608.69,608.02,5.70193654]
[1740913344162,1.13546986,608.68,608.02,5.70193654]
[1740913344761,1.13546986,608.67,608.02,5.70193654]
[1740913345565,1.13546986,608.66,608.02,5.70193654]
[1740913346266,3.04370594,608.86,608.02,5.70193654]
[1740913346467,3.04370594,608.85,608.02,5.70193654]
[1740913346667,1.43586327,608.84,608.02,5.70193654]
[1740913346867,1.43586327,608.83,608.02,5.70193654]
[1740913347062,1.43586327,608.82,608.02,5.70193654]
[1740913347264,1.43582581,608.81,608.02,5.70193654]
[1740913347467,1.13580253,608.83,608.02,5.70193654]
[1740913347468,1.43582581,608.8,608.02,5.70193654]
[1740913347669,1.13580253,608.8,608.02,5.70193654]
[1740913348561,1.13580253,608.79,608.02,5.70193654]
[1740913349267,1.71580007,608.87,608.02,5.70193654]
[1740913349268,1.13580253,608.78,608.02,5.70193654]
[1740913350169,1.13580253,608.77,608.02,5.70193654]
[1740913350969,1.13580253,608.76,608.02,5.70193654]
[1740913351172,1.13580253,608.75,608.02,5.70193654]
[1740913351867,1.13580253,608.74,608.02,5.70193654]
[1740913352470,1.13580253,608.73,608.02,5.70193654]
[1740913353073,1.13580253,608.72,608.02,5.70193654]
[1740913353675,1.13580253,608.71,608.02,5.70193654]
[1740913354277,1.71558156,609.07,608.02,5.70193654]
[1740913354478,3.04349991,609.06,608.02,5.70193654]
[1740913354671,3.04349991,609.05,608.02,5.70193654]
[1740913354875,3.04349991,609.04,608.02,5.70193654]
[1740913355071,1.71558156,609.07,608.02,5.70193654]
[1740913355072,3.04349991,609.03,608.02,5.70193654]
[1740913355276,1.43573818,609.02,608.02,5.70193654]
[1740913355473,1.1353995,609.04,608.02,5.70193654]
[1740913355673,1.4348296,609.03,608.02,5.70193654]
[1740913355874,1.4348296,609.02,608.02,5.70193654]
[1740913356077,1.1353995,609.03,608.02,5.70193654]
[1740913356773,1.1353995,609.02,608.02,5.70193654]
[1740913357678,1.1353995,609.01,608.02,5.70193654]
[1740913358379,1.1353995,609.0,608.02,5.70193654]
[1740913359375,1.1353995,608.99,608.02,5.70193654]
[1740913360379,1.1353995,608.98,608.02,5.70193654]
[1740913360874,1.1353995,608.97,608.02,5.70193654]
[1740913361580,1.71537014,609.09,608.02,5.70193654]
[1740913362378,1.13316711,609.08,608.02,5.70193654]
[1740913363175,1.13316711,609.07,608.02,5.70193654]
[1740913363878,1.13316711,609.06,608.02,5.70193654]
[1740913364273,1.13316711,609.05,608.02,5.70193654]
[1740913364682,1.13316711,609.04,608.02,5.70193654]
[1740913365380,1.13316711,609.03,608.02,5.70193654]
[1740913366179,1.13316711,609.02,608.02,5.70193654]
[1740913366580,1.13316711,609.01,608.02,5.70193654]
[1740913367178,1.13316711,609.0,608.02,5.70193654]
[1740913367977,1.7152715,609.13,608.02,5.70193654]
[1740913368386,3.03471119,609.24,608.02,5.70193654]
[1740913368685,4.74986997,609.23,608.02,5.70193654]
[1740913368878,1.43156007,609.22,608.02,5.70193654]
[1740913369082,1.43156007,609.21,608.02,5.70193654]
[1740913369282,1.13211884,609.21,608.02,5.70193654]
[1740913369883,1.13211884,609.2,608.02,5.70193654]
[1740913370185,1.13211884,609.2,608.11,1.23095386]
[1740913370381,1.13211884,609.19,608.13,0.32887704]
[1740913370984,1.13211884,609.18,608.13,0.32887704]
[1740913371884,1.13211884,609.17,608.13,0.32887704]
[1740913372280,1.13211884,609.16,608.13,0.32887704]
[1740913372887,1.13211884,609.15,608.13,0.32887704]
[1740913373482,1.13211884,609.14,608.13,0.32887704]
[1740913373681,1.13211884,609.14,608.14,5.005]
[1740913373884,1.13211884,609.13,608.16,0.32886082]
[1740913374883,1.13211884,609.12,608.16,0.32886082]
[1740913375281,1.13211884,609.11,608.16,0.32886082]
[1740913375782,1.71503904,609.19,608.16,0.32886082]
[1740913375783,1.13211884,609.18,608.16,0.32886082]
[1740913376488,1.13211884,609.17,608.16,0.32886082]
[1740913377289,1.71503904,609.19,608.16,0.32886082]
[1740913377290,1.13211884,609.16,608.16,0.32886082]
[1740913378193,1.13211884,609.15,608.16,0.32886082]
[1740913378695,1.13211884,609.33,608.16,0.32886082]
[1740913379286,1.13211884,609.32,608.16,0.32886082]
[1740913379689,1.13211884,609.45,608.16,0.32886082]
[1740913380091,1.13211884,609.44,608.16,0.32886082]
[1740913380588,1.13211884,609.43,608.16,0.32886082]
[1740913380988,0.97784117,609.62,608.16,0.32886082]
[1740913380989,1.13211884,609.42,608.16,0.32886082]
[1740913381185,1.13211884,609.42,608.17,1.23095386]
[1740913381388,1.71454613,609.41,608.19,0.3288446]
[1740913381797,1.13211884,609.4,608.19,0.3288446]
[1740913382394,1.13211884,609.39,608.19,0.3288446]
[1740913382998,1.13211884,609.38,608.19,0.3288446]
[1740913383601,1.13211884,609.37,608.19,0.3288446]
[1740913384500,1.71455317,609.43,608.19,0.3288446]
[1740913385097,1.13211884,609.42,608.19,0.3288446]
[1740913385696,1.13211884,609.41,608.19,0.3288446]
[1740913386301,1.13211884,609.4,608.19,0.3288446]
[1740913386900,1.13211884,609.39,608.19,0.3288446]
[1740913387601,1.13211884,609.42,608.19,0.3288446]
[1740913388499,1.13211884,609.41,608.19,0.3288446]
[1740913389201,1.71455317,609.43,608.19,0.3288446]
[1740913389999,4.15286387,609.6,608.19,0.3288446]
[1740913390198,3.02074503,609.59,608.19,0.3288446]
[1740913390398,4.73513631,609.59,608.19,0.3288446]
[1740913390603,1.42502567,609.58,608.19,0.3288446]
[1740913390803,2.55714451,609.58,608.19,0.3288446]
[1740913391002,2.55714451,609.58,608.2,1.292]
[1740913391316,1.13211884,609.57,608.22,0.32882838]
[1740913392006,1.13211884,609.56,608.22,0.32882838]
[1740913392506,1.13211884,609.55,608.22,0.32882838]
[1740913393611,2.84650308,609.54,608.22,0.32882838]
[1740913394107,1.13211884,609.53,608.22,0.32882838]
[1740913394611,1.13211884,609.52,608.22,0.32882838]
[1740913395306,1.13211884,609.51,608.22,0.32882838]
[1740913395905,1.13211884,609.5,608.22,0.32882838]
[1740913396506,1.71436313,609.51,608.22,0.32882838]
[1740913397012,1.13211884,609.5,608.22,0.32882838]
[1740913397609,0.74216381,610.27,608.22,0.32882838]
[1740913397610,1.13211884,609.49,608.22,0.32882838]
[1740913397810,1.12257522,609.49,608.22,0.32882838]
[1740913398810,1.71415905,609.63,608.22,0.32882838]
[1740913399010,0.97478049,609.83,608.22,0.32882838]
[1740913399011,3.01803957,609.76,608.22,0.32882838]
[1740913399206,1.59432237,609.75,608.22,0.32882838]
[1740913399411,1.71407462,609.62,608.22,0.32882838]
[1740913399608,3.01803957,609.8,608.22,0.32882838]
[1740913399807,3.01803957,609.79,608.22,0.32882838]
[1740913400012,0.97478049,609.85,608.22,0.32882838]
[1740913400013,3.01803957,609.78,608.22,0.32882838]
[1740913400313,1.59432237,609.77,608.22,0.32882838]
[1740913400508,3.01737418,609.83,608.22,0.32882838]
[1740913400713,3.01737418,609.82,608.22,0.32882838]
[1740913400914,1.71406055,609.76,608.27,1.23095386]
[1740913401114,1.42305181,609.75,608.27,1.23095386]
[1740913401314,0.9743194,609.73,608.29,0.32879054]
[1740913401509,0.9743194,609.7,608.29,0.32879054]
[1740913401706,2.39737121,609.69,608.29,0.90779054]
[1740913401908,0.9743194,609.66,608.29,0.90779054]
[1740913402114,0.9743194,609.63,608.29,0.90779054]
[1740913402316,0.9743194,609.61,608.29,0.90779054]
[1740913402516,1.72471674,609.6,608.29,0.90779054]
[1740913402712,1.42305181,609.59,608.29,0.90779054]
[1740913403011,1.72474909,609.58,608.29,0.90779054]
[1740913403212,1.42305181,609.57,608.29,0.90779054]
[1740913403417,1.42305181,609.56,608.29,0.90779054]
[1740913403616,1.42305181,609.55,608.29,0.90779054]
[1740913403817,1.42305181,609.54,608.29,0.90779054]
[1740913404116,1.42305181,609.58,608.29,0.90779054]
[1740913404319,1.42305181,609.57,608.29,0.90779054]
[1740913404510,1.42305181,609.56,608.29,0.90779054]
[1740913404716,1.42305181,609.55,608.29,0.90779054]
[1740913404917,1.42305181,609.54,608.29,0.90779054]
[1740913405117,1.42305181,609.53,608.29,0.90779054]
[1740913405318,1.42305181,609.52,608.29,0.90779054]
[1740913405517,1.42305181,609.51,608.29,0.90779054]
[1740913405713,1.42305181,609.5,608.29,0.90779054]
[1740913405917,1.42305181,609.49,608.29,0.90779054]
[1740913406118,1.42305181,609.48,608.29,0.90779054]
[1740913406317,1.42305181,609.47,608.29,0.90779054]
[1740913406518,1.42305181,609.46,608.29,0.90779054]
[1740913406719,1.42305181,609.5,608.29,0.90779054]
[1740913406919,1.42305181,609.49,608.29,0.90779054]
[1740913407213,1.42305181,609.48,608.29,0.90779054]
[1740913407419,1.42305181,609.47,608.29,0.90779054]
[1740913407621,1.42305181,609.46,608.29,0.90779054]
[1740913407812,1.42305181,609.45,608.29,0.90779054]
[1740913408016,1.42305181,609.44,608.29,0.90779054]
[1740913408318,1.71463061,609.44,608.29,0.90779054]
[1740913408518,1.42305181,609.43,608.29,0.90779054]
[1740913409415,1.42305181,609.42,608.29,0.90779054]
[1740913409620,3.01822566,609.43,608.29,0.90779054]
[1740913410015,1.42305181,609.42,608.29,0.90779054]
[1740913410322,1.42305181,609.41,608.29,0.90779054]
[1740913410822,3.01822566,609.41,608.29,0.90779054]
[1740913411020,1.1281268,609.4,608.29,0.90779054]
[1740913411418,2.84278557,609.4,608.29,0.90779054]
[1740913411619,1.1281268,609.39,608.29,0.90779054]
[1740913412123,1.1281268,609.38,608.29,0.90779054]
[1740913412523,1.1281268,609.37,608.29,0.90779054]
[1740913413120,1.1281268,609.36,608.29,0.90779054]
[1740913413520,1.1281268,609.35,608.29,0.90779054]
[1740913413722,1.1281268,609.34,608.29,0.90779054]
[1740913414326,2.84283486,609.33,608.29,0.90779054]
[1740913414524,1.1281268,609.32,608.29,0.90779054]
[1740913415128,1.1281268,609.31,608.29,0.90779054]
[1740913415524,1.1281268,609.3,608.29,0.90779054]
[1740913415929,1.71470806,609.33,608.29,0.90779054]
[1740913415930,1.1281268,609.29,608.29,0.90779054]
[1740913416525,1.1281268,609.28,608.29,0.90779054]
[1740913417129,1.1281268,609.27,608.29,2.49479054]
[1740913417530,2.8428771,609.27,608.29,2.49479054]
[1740913418135,1.1281268,609.26,608.29,2.49479054]
[1740913418433,1.1281268,609.25,608.29,2.49479054]
[1740913419034,1.1281268,609.24,608.29,2.49479054]
[1740913419433,1.1281268,609.23,608.29,2.49479054]
[1740913419931,1.1281268,609.22,608.29,2.49479054]
[1740913420533,2.84303202,609.21,608.29,2.49479054]
[1740913421333,1.1281268,609.2,608.29,2.49479054]
[1740913421934,1.1281268,609.19,608.29,2.49479054]
[1740913422435,1.1281268,609.19,608.29,4.19179054]
[1740913423032,1.1281268,609.18,608.29,4.19179054]
[1740913423432,2.84315175,609.18,608.29,4.19179054]
[1740913423636,1.1281268,609.17,608.29,4.19179054]
[1740913424332,1.1281268,609.16,608.29,4.19179054]
[1740913424536,1.1281268,609.15,608.29,4.19179054]
[1740913424838,1.1281268,609.14,608.29,4.19179054]
[1740913425632,1.1281268,609.13,608.29,4.19179054]
[1740913426240,2.84319401,609.12,608.29,4.19179054]